{"text_format":"1","workbook":"xlsx","n_sheets":2,"sheets":["BestSub","Tech"],"not_rendered":{"charts":0,"images":1,"macros":1,"external_links":0,"defined_names":33,"comments":0,"pivot_tables":0},"unopened":[],"bounds":{"document_bytes":16777216,"sheet_cells":100000,"rows_first":2000,"rows_last":500,"rows_between":2000,"halvings":0,"cell_chars":16384,"cell_head_chars":4096},"cells_cut":0,"cells_raw":0,"read":"whole","date_system":"1900"}

{"sheet":"BestSub","index":0,"n_rows":42,"n_cols":33,"rows_kept":42,"cut":false,"hidden":false,"merged":[]}
[]
[null,"Валюта"]
[null,"Поставщик:"]
[null,"Дата заказа:"]
[null,"Предварительная сумма заказа:",{"$f":"SUM(J:J)","v":2446}]
[]
[null,"Артикул 1С","Наименование согласно 1С","Единица измерения В 1С","Наименование согласно инвойсу поставшика","Цена за штуку","Заказ Всего штук","Сумма Заказа","Скидка %","Сумма с учётом скидки","Проект","Модель/ Артикул / ID номер поставщика / номер в каталоге","Торговая марка / знак товара (если есть графические обозначения - фото)","Фирма-производитель (на английском языке)","Страна происхождения ","Характеристики / Описание / Технические параметры / Химический состав / Материал / Комплектация / Маркировка на продукции (без упаковки)","Область применения / Назначение","Род / Тип упаковки","Маркировка упаковки","Кол-во в упаковке","Кол-во упаковок","Ссылки в интернете","Фото","Единица измерения (для заявки)","Кол-во по базе 1 С","Длина коробки","Ширина коробки","Высота коробки","Вес коробки нетто","Вес коробки брутто","общий вес нетто","общий вес брутто","общий объём м.куб."]
[]
[null,null,null,null,null,0.45,null,123,null,{"$f":"Сводная_Заказа[[#This Row],[Сумма Заказа]]*(1-Сводная_Заказа[[#This Row],[Скидка %]])","v":123}]
[]
[null,null,null,null,null,0.61099999999999999,null,2323,null,{"$f":"Сводная_Заказа[[#This Row],[Сумма Заказа]]*(1-Сводная_Заказа[[#This Row],[Скидка %]])","v":2323}]
[null,null,null,null,null,0.61099999999999999,null,{"$f":"Сводная_Заказа[[#This Row],[Заказ Всего штук]]*Сводная_Заказа[[#This Row],[Цена за штуку]]","v":0},null,{"$f":"Сводная_Заказа[[#This Row],[Сумма Заказа]]*(1-Сводная_Заказа[[#This Row],[Скидка %]])","v":0}]
[null,null,null,null,null,0.61099999999999999,null,{"$f":"Сводная_Заказа[[#This Row],[Заказ Всего штук]]*Сводная_Заказа[[#This Row],[Цена за штуку]]","v":0},null,{"$f":"Сводная_Заказа[[#This Row],[Сумма Заказа]]*(1-Сводная_Заказа[[#This Row],[Скидка %]])","v":0}]
[null,null,null,null,null,0.61099999999999999,null,{"$f":"Сводная_Заказа[[#This Row],[Заказ Всего штук]]*Сводная_Заказа[[#This Row],[Цена за штуку]]","v":0},null,{"$f":"Сводная_Заказа[[#This Row],[Сумма Заказа]]*(1-Сводная_Заказа[[#This Row],[Скидка %]])","v":0}]
[null,null,null,null,null,0.61099999999999999,null,{"$f":"Сводная_Заказа[[#This Row],[Заказ Всего штук]]*Сводная_Заказа[[#This Row],[Цена за штуку]]","v":0},null,{"$f":"Сводная_Заказа[[#This Row],[Сумма Заказа]]*(1-Сводная_Заказа[[#This Row],[Скидка %]])","v":0}]
[null,null,null,null,null,0.61099999999999999,null,{"$f":"Сводная_Заказа[[#This Row],[Заказ Всего штук]]*Сводная_Заказа[[#This Row],[Цена за штуку]]","v":0},null,{"$f":"Сводная_Заказа[[#This Row],[Сумма Заказа]]*(1-Сводная_Заказа[[#This Row],[Скидка %]])","v":0}]
[null,null,null,null,null,0.61099999999999999,null,{"$f":"Сводная_Заказа[[#This Row],[Заказ Всего штук]]*Сводная_Заказа[[#This Row],[Цена за штуку]]","v":0},null,{"$f":"Сводная_Заказа[[#This Row],[Сумма Заказа]]*(1-Сводная_Заказа[[#This Row],[Скидка %]])","v":0}]
[null,null,null,null,null,0.61099999999999999,null,{"$f":"Сводная_Заказа[[#This Row],[Заказ Всего штук]]*Сводная_Заказа[[#This Row],[Цена за штуку]]","v":0},null,{"$f":"Сводная_Заказа[[#This Row],[Сумма Заказа]]*(1-Сводная_Заказа[[#This Row],[Скидка %]])","v":0}]
[]
[null,null,null,null,null,0.61099999999999999,null,{"$f":"Сводная_Заказа[[#This Row],[Заказ Всего штук]]*Сводная_Заказа[[#This Row],[Цена за штуку]]","v":0},null,{"$f":"Сводная_Заказа[[#This Row],[Сумма Заказа]]*(1-Сводная_Заказа[[#This Row],[Скидка %]])","v":0}]
[null,null,null,null,null,0.61099999999999999,null,{"$f":"Сводная_Заказа[[#This Row],[Заказ Всего штук]]*Сводная_Заказа[[#This Row],[Цена за штуку]]","v":0},null,{"$f":"Сводная_Заказа[[#This Row],[Сумма Заказа]]*(1-Сводная_Заказа[[#This Row],[Скидка %]])","v":0}]
[null,null,null,null,null,0.61099999999999999,null,{"$f":"Сводная_Заказа[[#This Row],[Заказ Всего штук]]*Сводная_Заказа[[#This Row],[Цена за штуку]]","v":0},null,{"$f":"Сводная_Заказа[[#This Row],[Сумма Заказа]]*(1-Сводная_Заказа[[#This Row],[Скидка %]])","v":0}]
[null,null,null,null,null,0.61099999999999999,null,{"$f":"Сводная_Заказа[[#This Row],[Заказ Всего штук]]*Сводная_Заказа[[#This Row],[Цена за штуку]]","v":0},null,{"$f":"Сводная_Заказа[[#This Row],[Сумма Заказа]]*(1-Сводная_Заказа[[#This Row],[Скидка %]])","v":0}]
[null,null,null,null,null,0.61099999999999999,null,{"$f":"Сводная_Заказа[[#This Row],[Заказ Всего штук]]*Сводная_Заказа[[#This Row],[Цена за штуку]]","v":0},null,{"$f":"Сводная_Заказа[[#This Row],[Сумма Заказа]]*(1-Сводная_Заказа[[#This Row],[Скидка %]])","v":0}]
[null,null,null,null,null,0.61099999999999999,null,{"$f":"Сводная_Заказа[[#This Row],[Заказ Всего штук]]*Сводная_Заказа[[#This Row],[Цена за штуку]]","v":0},null,{"$f":"Сводная_Заказа[[#This Row],[Сумма Заказа]]*(1-Сводная_Заказа[[#This Row],[Скидка %]])","v":0}]
[null,null,null,null,null,0.61099999999999999,null,{"$f":"Сводная_Заказа[[#This Row],[Заказ Всего штук]]*Сводная_Заказа[[#This Row],[Цена за штуку]]","v":0},null,{"$f":"Сводная_Заказа[[#This Row],[Сумма Заказа]]*(1-Сводная_Заказа[[#This Row],[Скидка %]])","v":0}]
[null,null,null,null,null,0.61099999999999999,null,{"$f":"Сводная_Заказа[[#This Row],[Заказ Всего штук]]*Сводная_Заказа[[#This Row],[Цена за штуку]]","v":0},null,{"$f":"Сводная_Заказа[[#This Row],[Сумма Заказа]]*(1-Сводная_Заказа[[#This Row],[Скидка %]])","v":0}]
[null,null,null,null,null,0.61099999999999999,null,{"$f":"Сводная_Заказа[[#This Row],[Заказ Всего штук]]*Сводная_Заказа[[#This Row],[Цена за штуку]]","v":0},null,{"$f":"Сводная_Заказа[[#This Row],[Сумма Заказа]]*(1-Сводная_Заказа[[#This Row],[Скидка %]])","v":0}]
[]
[null,null,null,null,null,0.67,null,{"$f":"Сводная_Заказа[[#This Row],[Заказ Всего штук]]*Сводная_Заказа[[#This Row],[Цена за штуку]]","v":0},null,{"$f":"Сводная_Заказа[[#This Row],[Сумма Заказа]]*(1-Сводная_Заказа[[#This Row],[Скидка %]])","v":0}]
[null,null,null,null,null,0.67,null,{"$f":"Сводная_Заказа[[#This Row],[Заказ Всего штук]]*Сводная_Заказа[[#This Row],[Цена за штуку]]","v":0},null,{"$f":"Сводная_Заказа[[#This Row],[Сумма Заказа]]*(1-Сводная_Заказа[[#This Row],[Скидка %]])","v":0}]
[null,null,null,null,null,0.67,null,{"$f":"Сводная_Заказа[[#This Row],[Заказ Всего штук]]*Сводная_Заказа[[#This Row],[Цена за штуку]]","v":0},null,{"$f":"Сводная_Заказа[[#This Row],[Сумма Заказа]]*(1-Сводная_Заказа[[#This Row],[Скидка %]])","v":0}]
[null,null,null,null,null,0.67,null,{"$f":"Сводная_Заказа[[#This Row],[Заказ Всего штук]]*Сводная_Заказа[[#This Row],[Цена за штуку]]","v":0},null,{"$f":"Сводная_Заказа[[#This Row],[Сумма Заказа]]*(1-Сводная_Заказа[[#This Row],[Скидка %]])","v":0}]
[null,null,null,null,null,0.67,null,{"$f":"Сводная_Заказа[[#This Row],[Заказ Всего штук]]*Сводная_Заказа[[#This Row],[Цена за штуку]]","v":0},null,{"$f":"Сводная_Заказа[[#This Row],[Сумма Заказа]]*(1-Сводная_Заказа[[#This Row],[Скидка %]])","v":0}]
[null,null,null,null,null,0.67,null,{"$f":"Сводная_Заказа[[#This Row],[Заказ Всего штук]]*Сводная_Заказа[[#This Row],[Цена за штуку]]","v":0},null,{"$f":"Сводная_Заказа[[#This Row],[Сумма Заказа]]*(1-Сводная_Заказа[[#This Row],[Скидка %]])","v":0}]
[]
[null,null,null,null,null,1.1499999999999999,null,{"$f":"Сводная_Заказа[[#This Row],[Заказ Всего штук]]*Сводная_Заказа[[#This Row],[Цена за штуку]]","v":0},null,{"$f":"Сводная_Заказа[[#This Row],[Сумма Заказа]]*(1-Сводная_Заказа[[#This Row],[Скидка %]])","v":0}]
[]
[null,null,null,null,null,1.55,null,{"$f":"Сводная_Заказа[[#This Row],[Заказ Всего штук]]*Сводная_Заказа[[#This Row],[Цена за штуку]]","v":0},null,{"$f":"Сводная_Заказа[[#This Row],[Сумма Заказа]]*(1-Сводная_Заказа[[#This Row],[Скидка %]])","v":0}]
[]
[null,null,null,null,null,0.16,null,{"$f":"Сводная_Заказа[[#This Row],[Заказ Всего штук]]*Сводная_Заказа[[#This Row],[Цена за штуку]]","v":0},null,{"$f":"Сводная_Заказа[[#This Row],[Сумма Заказа]]*(1-Сводная_Заказа[[#This Row],[Скидка %]])","v":0}]
[null,null,null,null,null,0.06,null,{"$f":"Сводная_Заказа[[#This Row],[Заказ Всего штук]]*Сводная_Заказа[[#This Row],[Цена за штуку]]","v":0},null,{"$f":"Сводная_Заказа[[#This Row],[Сумма Заказа]]*(1-Сводная_Заказа[[#This Row],[Скидка %]])","v":0}]

{"sheet":"Tech","index":1,"n_rows":2,"n_cols":1,"rows_kept":2,"cut":false,"hidden":true,"merged":[]}
["Евро EUR"]
["Доллар USD"]